bitfinex/quotes_ETHUSD_20241129
["timestamp","ask_amount","ask_price","bid_price","bid_amount"]
[1732909277841,0.07084861,3584.3,3584.2,0.00188862]
[1732909278047,2.78984,3584.5,3584.2,0.00188862]
[1732909278580,0.06843877,3584.4,3584.2,0.00188862]
[1732909278787,2.85831877,3584.4,3584.2,0.00188862]
[1732909279197,2.78994,3584.3,3584.2,0.00188862]
[1732909279699,2.85835975,3584.3,3584.2,0.00188862]
[1732909282002,0.06841975,3584.3,3584.2,0.00188862]
[1732909282296,2.78989,3584.4,3584.2,0.76258862]
[1732909282456,0.06846267,3584.3,3584.2,0.76258862]
[1732909282656,0.06846267,3584.3,3584.2,1.02236724]
[1732909283264,0.06619651,3584.3,3584.2,1.02236724]
[1732909283470,2.78991,3584.4,3584.2,1.02236724]
[1732909283696,2.78991,3584.4,3584.3,0.25977862]
[1732909284069,3.0,3585.0,3584.4,2.78986]
[1732909284259,2.78924,3585.2,3584.5,0.77930813]
[1732909284484,2.78924,3585.2,3584.7,0.8009]
[1732909284691,2.78945,3585.0,3584.8,0.77915991]
[1732909286271,2.78924,3585.2,3585.1,0.25960326]
[1732909288791,2.78924,3585.2,3584.7,0.8009]
[1732909289008,2.78937,3585.1,3584.8,0.51913765]
[1732909289207,2.78944,3585.0,3584.9,0.25957767]
[1732909289407,2.85605182,3585.0,3584.9,0.25957767]
[1732909295537,2.78997,3584.3,3584.2,0.51942973]
[1732909295948,2.79017,3584.0,3583.8,1.18580215]
[1732909296244,2.79014,3584.1,3583.9,0.77947287]
[1732909296450,2.79014,3584.1,3584.0,0.25982429]
[1732909297047,2.79014,3584.1,3584.0,0.77947287]
[1732909297233,2.79014,3584.1,3584.0,0.25982429]
[1732909298848,2.79014,3584.1,3584.0,0.25982088]
[1732909299727,2.85650193,3584.1,3584.0,0.25982088]
[1732909304626,2.85461325,3584.1,3584.0,0.25982088]
[1732909305674,2.85461325,3584.1,3584.0,0.25991549]
[1732909305675,2.85646193,3584.1,3584.0,0.25991549]
[1732909307058,6.65146193,3584.1,3584.0,0.25991549]
[1732909308147,6.65146193,3584.1,3583.1,0.51983098]
[1732909308333,2.79065,3583.4,3583.2,1.5470001]
[1732909308535,2.79065,3583.4,3583.3,0.7796001]
[1732909308864,2.79065,3583.4,3583.3,0.77930956]
[1732909309030,2.79065,3583.4,3583.3,0.25976985]
[1732909309536,2.85489109,3583.4,3583.3,0.25976985]
[1732909312065,2.85489109,3583.4,3583.3,0.25963168]
[1732909316373,2.79072,3583.3,3583.2,0.7674]
[1732909316557,2.79072,3583.3,3583.2,1.02686053]
[1732909316780,2.85486241,3583.3,3583.2,1.02686053]
[1732909318750,2.85486241,3583.3,3583.2,1.0269739]
[1732909319465,0.06414241,3583.3,3583.2,1.0269739]
[1732909319663,2.79071,3583.4,3583.2,1.0269739]
[1732909319861,2.79047,3583.7,3583.3,0.2595739]
[1732909320191,2.79047,3583.7,3583.4,0.2595739]
[1732909320410,2.79047,3583.7,3583.5,0.2595739]
[1732909320576,2.79047,3583.7,3583.6,0.2595739]
[1732909320768,2.79008,3584.2,3583.6,3.8229339]
[1732909320970,2.79008,3584.2,3583.7,0.2595739]
[1732909321153,2.79008,3584.2,3583.8,0.51905907]
[1732909321359,2.79008,3584.2,3583.8,0.25952953]
[1732909321582,2.79008,3584.2,3583.6,3.99590922]
[1732909321780,2.79008,3584.2,3583.7,3.32882653]
[1732909322763,0.7998,3584.7,3583.7,0.53842653]
[1732909322951,0.7998,3584.7,3583.6,0.7729]
[1732909322952,2.79007,3584.2,3583.6,3.56336]
[1732909323157,2.78988,3584.4,3583.7,2.7904]
[1732909323385,0.06238586,3584.1,3583.7,2.7904]
[1732909323950,0.06238586,3584.1,3583.6,3.56338]
[1732909324153,0.06238586,3584.1,3583.6,3.56337]
[1732909324353,0.06238586,3584.1,3583.6,0.7729]
[1732909324552,2.85249586,3584.1,3583.6,0.7729]
[1732909325095,2.85249586,3584.1,3583.6,3.56338]
[1732909325600,2.85249586,3584.1,3583.6,0.7729]
[1732909325979,2.79034,3583.8,3583.2,0.7774]
[1732909326168,1.38553045,3584.1,3583.2,0.7774]
[1732909326169,2.79042,3583.7,3583.2,0.7774]
[1732909326384,2.79042,3583.7,3582.9,1.23374387]
[1732909326385,2.79071,3583.4,3582.9,0.7774]
[1732909327073,0.06025198,3583.3,3582.9,0.7774]
[1732909327275,2.85098198,3583.3,3582.9,0.7774]
[1732909328292,2.79085,3583.2,3582.9,0.7774]
[1732909328494,2.79101,3583.0,3582.4,0.7721]
[1732909328799,2.79105,3582.9,3582.4,0.7721]
[1732909329001,2.85055574,3582.9,3582.4,0.7721]
[1732909329293,0.05950574,3582.9,3582.4,0.7721]
[1732909329492,2.79123,3582.7,3582.4,0.7721]
[1732909329680,2.79127,3582.6,3582.4,0.7721]
[1732909329999,2.85066882,3582.6,3582.4,0.7721]
[1732909330201,0.05939882,3582.6,3582.4,0.7721]
[1732909330758,2.85071882,3582.6,3582.4,0.7721]
[1732909330963,2.85071882,3582.6,3582.0,1.3221]
[1732909331266,2.85067882,3582.6,3582.0,4.804372]
[1732909331476,2.85067882,3582.6,3582.4,15.0]
[1732909333062,2.79134,3582.5,3582.4,15.0]
[1732909333265,2.84934971,3582.5,3582.4,15.0]
[1732909334604,3.62884971,3582.5,3582.4,15.0]
[1732909345179,2.84934971,3582.5,3582.4,15.0]
[1732909349433,9.72561724,3582.5,3582.4,15.0]
[1732909352269,8.40772401,3582.5,3582.4,15.0]
[1732909354844,7.17270468,3582.5,3582.4,15.0]
[1732909355046,8.40772401,3582.5,3582.4,15.0]
[1732909361800,7.17270468,3582.5,3582.4,15.0]
[1732909361965,2.84934971,3582.5,3582.4,15.0]
[1732909366394,0.05800971,3582.5,3582.4,15.0]
[1732909366557,0.05800971,3582.5,3582.4,18.55702]
[1732909366758,2.79109,3582.9,3582.4,15.7656]
[1732909367076,5.79096,3583.0,3582.5,0.7656]
[1732909367286,5.79096,3583.0,3582.6,1.855697]
[1732909367287,0.05306189,3582.8,3582.6,1.855697]
[1732909367587,0.05302094,3582.7,3582.6,1.855697]
[1732909367961,2.79103,3582.9,3582.6,1.855697]
[1732909368165,0.05297833,3582.7,3582.6,1.855697]
[1732909368493,2.79103,3582.9,3582.6,1.855697]
[1732909368793,3.0,3583.1,3582.6,2.79126]
[1732909368955,0.05301928,3582.8,3582.7,0.7754]
[1732909369157,2.7907,3583.4,3582.7,0.7754]
[1732909369368,0.05301928,3582.8,3582.7,0.7754]
[1732909369574,2.79088,3583.1,3582.7,2.632069]
[1732909369809,2.79087,3583.2,3582.7,2.632069]
[1732909369810,0.05305115,3582.8,3582.7,2.632069]
[1732909369982,2.79097,3583.0,3582.7,2.632069]
[1732909370188,0.05305115,3582.8,3582.7,2.632069]
[1732909370378,2.79097,3583.0,3582.7,2.632069]
[1732909370584,0.05305115,3582.8,3582.7,2.632069]
[1732909370876,2.79088,3583.1,3582.7,2.632069]
[1732909371489,0.05311711,3583.0,3582.8,0.5423359]
[1732909373215,5.79081,3583.2,3582.8,0.5423359]
[1732909373509,0.05312547,3582.9,3582.8,0.5423359]
[1732909373715,5.79081,3583.2,3582.8,0.5423359]
[1732909373913,0.0530936,3582.9,3582.8,0.5423359]
[1732909374114,5.79081,3583.2,3582.8,0.5423359]
[1732909374320,0.05310953,3582.9,3582.8,0.5423359]
[1732909374624,0.05310596,3582.9,3582.8,0.5423359]
[1732909374823,0.05310596,3582.9,3582.7,2.632069]
[1732909374976,2.79102,3583.0,3582.7,0.7754]
[1732909375177,1.23501933,3583.2,3582.4,15.0]
[1732909375178,2.84414314,3582.8,3582.4,15.0]
[1732909375374,2.79134,3582.5,3582.4,15.0]
[1732909375823,2.84423038,3582.5,3582.4,15.0]
[1732909381753,2.84423038,3582.5,3582.4,15.26008715]
[1732909381905,2.84423038,3582.5,3582.4,15.26008379]
[1732909385747,2.84423038,3582.5,3582.4,15.0]
[1732909386032,7.16357842,3582.5,3582.4,15.0]
[1732909387357,6.60003038,3582.5,3582.4,15.0]
[1732909387638,5.84423038,3582.5,3582.4,15.0]
[1732909391637,2.84423038,3582.5,3582.4,15.0]
[1732909396142,6.66593038,3582.5,3582.4,15.0]
[1732909403856,6.66593038,3582.5,3582.4,8.02145]
[1732909404060,6.76593038,3582.5,3582.4,7.12854177]
[1732909404379,0.8154,3581.1,3580.0,0.7915]
[1732909404561,2.79285,3580.6,3580.1,0.52146196]
[1732909404872,0.04882425,3580.5,3580.2,0.52146196]
[1732909405066,0.04882425,3580.5,3580.3,0.52174488]
[1732909405269,2.79299,3580.4,3580.3,0.52174488]
[1732909405571,2.79299,3580.4,3580.0,0.7915]
[1732909405572,2.7931,3580.3,3580.1,0.52174488]
[1732909405776,0.04878139,3580.4,3580.2,0.52174488]
[1732909405967,0.04878139,3580.4,3580.0,0.7915]
[1732909405968,2.79306,3580.3,3580.1,0.52148827]
[1732909406171,2.79306,3580.3,3580.0,0.7915]
[1732909406392,5.34646264,3580.9,3580.0,0.7915]
[1732909406393,2.84171278,3580.2,3580.0,0.7915]
[1732909406600,0.04857278,3580.2,3580.0,0.7915]
[1732909406805,2.79299,3580.4,3580.0,0.7915]
[1732909406977,0.0486773,3580.1,3580.0,0.7915]
[1732909407164,2.79299,3580.4,3580.0,1.20215083]
[1732909407359,0.04875933,3580.3,3580.0,1.20215083]
[1732909408886,0.04875933,3580.3,3580.0,0.7915]
[1732909412303,2.84182933,3580.3,3580.0,0.7915]
[1732909413816,0.04875933,3580.3,3580.0,0.7915]
[1732909414020,2.79284,3580.6,3580.0,3.58478]
[1732909414219,0.04852564,3580.2,3580.0,3.58478]
[1732909414423,2.79284,3580.6,3580.0,4.222608]
[1732909414743,0.04849932,3580.1,3580.0,0.7915]
[1732909414946,2.79283,3580.6,3580.0,0.7915]
[1732909415118,0.04851528,3580.1,3580.0,3.58479]
[1732909415307,1.31620975,3581.5,3580.2,3.60658]
[1732909415647,2.7926,3580.9,3580.2,0.8135]
[1732909415944,2.7926,3580.9,3580.3,3.153718]
[1732909416107,0.04883542,3580.8,3580.3,3.153718]
[1732909416308,0.04883542,3580.8,3580.3,0.360668]
[1732909416845,2.84150542,3580.8,3580.3,0.360668]
[1732909417147,0.04883542,3580.8,3580.3,0.360668]
[1732909417351,0.04883542,3580.8,3580.4,3.1897168]
[1732909419210,0.04883542,3580.8,3580.5,3.5685]
[1732909419428,5.79245,3581.1,3580.5,3.5685]
[1732909419725,0.04889748,3580.7,3580.5,3.5685]
[1732909419937,5.79245,3581.1,3580.5,3.5685]
[1732909420150,0.04886391,3580.6,3580.5,3.5685]
[1732909420337,5.79244,3581.1,3580.5,4.24432168]
[1732909420508,0.04886391,3580.6,3580.5,4.24432168]
[1732909420713,2.79256,3581.0,3580.5,4.24431168]
[1732909420947,0.04886391,3580.6,3580.5,0.7756]
[1732909421227,2.79282,3580.6,3580.1,0.7806]
[1732909421407,2.84168637,3580.6,3580.1,0.7806]
[1732909422248,2.79301,3580.4,3580.1,0.7806]
[1732909422549,2.79308,3580.3,3580.1,0.7806]
[1732909422716,2.84178883,3580.3,3580.1,0.7806]
[1732909423619,2.84178883,3580.3,3579.7,0.7726]
[1732909423855,2.79314,3580.2,3579.7,1.408592]
[1732909424151,2.84180782,3580.2,3579.7,1.9289335]
[1732909424318,2.84180782,3580.2,3579.7,4.7224435]
[1732909424519,2.84180782,3580.2,3579.7,4.202102]
[1732909425153,2.84180782,3580.2,3579.7,1.408592]
[1732909425359,2.84180782,3580.2,3579.7,1.92907323]
[1732909425584,2.84180782,3580.2,3579.7,1.29308123]
[1732909425585,2.79332,3580.0,3579.7,1.29308123]
[1732909425788,2.79332,3580.0,3579.7,0.7726]
[1732909425988,0.04854477,3579.9,3579.7,0.7726]
[1732909426287,2.79314,3580.2,3579.7,0.7726]
[1732909426457,0.04850375,3579.8,3579.7,0.7726]
[1732909426657,2.79314,3580.2,3579.7,1.46064812]
[1732909426898,0.04850375,3579.8,3579.7,0.7726]
[1732909427095,2.79314,3580.2,3579.7,0.7726]
[1732909427391,0.04850375,3579.8,3579.7,0.7726]
[1732909427560,2.79314,3580.2,3579.7,0.7726]
[1732909427752,0.04850375,3579.8,3579.7,0.7726]
[1732909427958,2.79314,3580.2,3579.7,1.35430851]
[1732909428157,0.04850375,3579.8,3579.7,1.87478974]
[1732909428379,2.79314,3580.2,3579.7,1.35430851]
[1732909428655,3.0,3580.6,3579.7,1.87478974]
[1732909428869,2.8418468,3580.1,3579.7,0.7726]
[1732909429163,2.79322,3580.1,3579.7,1.29308123]
[1732909429387,0.04858579,3580.0,3579.7,0.7726]
[1732909429608,0.04858579,3580.0,3579.7,1.29308123]
[1732909429765,0.04858579,3580.0,3579.6,0.52048123]
[1732909429973,0.04858579,3580.0,3579.7,0.52048123]
[1732909430192,0.04858579,3580.0,3579.8,0.52048123]
[1732909430483,0.04858579,3580.0,3579.7,0.52048123]
[1732909430690,0.04858579,3580.0,3579.8,0.52048123]
[1732909430899,2.84192579,3580.0,3579.7,0.52048123]
[1732909431076,2.79337,3579.9,3579.8,0.52048123]
[1732909431278,2.7936,3579.6,3579.5,0.52048123]
[1732909431671,2.79392,3579.2,3579.1,0.52048123]
[1732909432099,2.84200445,3579.2,3579.1,0.52048123]
[1732909434167,0.04808445,3579.2,3579.1,0.52048123]
[1732909434371,0.04808445,3579.2,3578.7,3.59099]
[1732909434602,0.04808445,3579.2,3579.0,0.7838]
[1732909434810,0.806,3579.8,3579.1,0.52180707]
[1732909435015,2.79368,3579.6,3579.2,0.52180707]
[1732909435173,2.79384,3579.3,3579.0,0.7838]
[1732909435373,2.79384,3579.3,3579.1,0.52173967]
[1732909435575,2.79384,3579.3,3579.2,0.52173967]
[1732909435775,2.79392,3579.2,3579.1,0.52173967]
[1732909436920,2.79384,3579.3,3578.8,0.359099]
[1732909436921,2.79399,3579.1,3578.8,0.359099]
[1732909437112,2.79404,3579.1,3578.9,0.52164401]
[1732909437417,2.79403,3579.1,3579.0,0.52164401]
[1732909438111,5.58776,3579.3,3579.0,0.52164401]
[1732909438419,0.04638804,3579.1,3578.8,0.52164401]
[1732909438617,3.806,3579.8,3578.9,0.52149389]
[1732909438618,2.79357,3579.7,3578.9,0.52149389]
[1732909438918,2.79361,3579.6,3579.0,0.52146845]
[1732909439114,2.8402032,3579.6,3579.1,0.52146845]
[1732909439320,0.0465932,3579.6,3579.2,3.31532845]
[1732909439484,0.0465932,3579.6,3579.3,4.13158967]
[1732909439815,2.79323,3580.1,3579.4,0.52128967]
[1732909440033,2.79312,3580.3,3579.5,3.31496967]
[1732909440313,0.04673872,3580.0,3579.6,4.13133967]
[1732909440505,2.79318,3580.2,3579.7,1.21379564]
[1732909440750,0.04659376,3579.9,3579.8,0.5209913]
[1732909440894,2.79318,3580.2,3579.7,0.5209913]
[1732909441094,2.79304,3580.4,3579.8,0.5209913]
[1732909441095,0.04663459,3579.9,3579.8,0.5209913]
[1732909441322,2.79307,3580.3,3579.8,0.5209913]
[1732909441522,0.04663459,3579.9,3579.8,0.5209913]
[1732909441683,2.79307,3580.3,3579.8,1.21344343]
[1732909441884,0.04667296,3579.9,3579.7,2.79348]
[1732909442119,2.79307,3580.3,3579.8,0.52099685]
[1732909443003,2.79304,3580.4,3579.9,2.79336]
[1732909443221,3.56364,3580.6,3579.9,2.79336]
[1732909443385,2.79292,3580.5,3579.9,2.79336]
[1732909443722,3.0,3580.8,3580.1,2.79316]
[1732909443723,2.79275,3580.7,3580.1,2.79316]
[1732909444656,2.79285,3580.6,3580.0,3.60388]
[1732909445017,3.7612,3580.8,3580.0,0.8106]
[1732909445230,0.1,3582.1,3580.5,0.8106]
[1732909445231,3.7612,3581.1,3580.5,0.8106]
[1732909445418,2.79221,3581.4,3580.7,2.7927]
[1732909445619,2.79234,3581.3,3580.7,2.79274]
[1732909446542,2.79257,3581.0,3580.8,0.26010412]
[1732909446742,2.79247,3581.1,3580.5,0.8106]
[1732909446941,2.79247,3581.1,3580.5,3.6035]
[1732909449162,0.04756309,3581.0,3580.6,2.79281]
[1732909449461,2.79213,3581.5,3580.6,2.79281]
[1732909449462,2.79236,3581.2,3580.6,2.79281]
[1732909450020,0.04760901,3581.1,3580.8,2.79265]
[1732909450218,2.79226,3581.4,3580.8,2.79265]
[1732909450555,2.8399921,3581.3,3580.7,0.8147]
[1732909450855,0.0477021,3581.3,3580.8,2.79266]
[1732909451225,0.04766112,3581.2,3580.8,2.79266]
[1732909451534,2.79213,3581.5,3580.8,2.79266]
[1732909451737,0.04762014,3581.1,3580.8,2.79266]
[1732909451932,2.79213,3581.5,3580.8,2.79266]
[1732909452125,0.04757916,3581.0,3580.8,2.79266]
[1732909452327,2.79213,3581.5,3580.8,2.79266]
[1732909452557,2.79228,3581.3,3580.8,2.79266]
[1732909452928,0.04766112,3581.2,3580.8,2.79266]
[1732909454934,0.04766112,3581.2,3580.7,0.8147]
[1732909455262,2.79256,3581.0,3580.7,0.8147]
[1732909455557,2.79266,3580.9,3580.4,0.8309]
[1732909455798,2.79268,3580.8,3580.4,0.8309]
[1732909455962,2.84018215,3580.8,3580.4,0.8309]
[1732909456418,0.04750215,3580.8,3580.4,0.8309]
[1732909456622,0.04750215,3580.8,3580.4,3.62388]
[1732909456837,2.79319,3580.2,3579.5,2.79366]
[1732909457028,2.79334,3580.0,3579.3,2.79384]
[1732909457229,2.79338,3579.9,3579.3,3.4231675]
[1732909457451,2.84049721,3579.9,3579.3,3.4231675]
[1732909457878,0.04711721,3579.9,3579.3,3.4231675]
[1732909458235,2.84051721,3579.9,3579.3,3.4231675]
[1732909458430,0.04711721,3579.9,3579.5,2.79367]
[1732909458735,0.04711721,3579.9,3579.6,0.7746]
[1732909458929,2.79337,3579.9,3579.6,0.7746]
[1732909459130,0.04698493,3579.8,3579.6,0.7746]
[1732909461641,0.04698493,3579.8,3578.0,2.85555628]
[1732909461642,0.04698493,3579.8,3578.4,2.79453]
[1732909461990,2.79374,3579.5,3579.1,0.7897]
[1732909462357,0.04665621,3579.4,3579.1,0.7897]
[1732909467850,2.79361,3579.6,3579.1,0.7897]
[1732909468050,0.04694121,3579.5,3579.1,0.7897]
[1732909469803,0.04694121,3579.5,3579.1,3.58368]
[1732909470006,0.04694121,3579.5,3579.2,2.79391]
[1732909470302,2.79354,3579.7,3579.2,2.79391]
[1732909470467,2.79354,3579.7,3579.1,0.7897]
[1732909470468,0.04689041,3579.4,3579.1,3.58364]
[1732909470668,2.79353,3579.7,3579.1,3.58364]
[1732909470868,0.04684939,3579.3,3579.1,3.58364]
[1732909471063,2.79353,3579.7,3579.1,3.58364]
[1732909471265,0.04665427,3579.2,3579.1,3.58364]
[1732909471493,2.79353,3579.7,3579.1,3.58364]
[1732909471701,0.04526005,3579.2,3579.1,3.58364]
[1732909471901,2.79353,3579.7,3579.1,3.58364]
[1732909472066,0.045276,3579.2,3579.1,3.58364]
[1732909472265,2.79353,3579.7,3579.1,3.58364]
[1732909472581,0.8228,3579.2,3578.6,0.7667]
[1732909472809,0.8228,3579.2,3578.7,2.79428]
[1732909473103,2.79377,3579.4,3578.8,2.79422]
[1732909473412,2.79377,3579.4,3578.9,2.79415]
[1732909474106,0.7578,3579.5,3579.0,2.79405]
[1732909474672,3.55153,3579.5,3578.8,2.82209947]
[1732909475408,3.55153,3579.5,3578.9,2.79412]
[1732909475713,3.55153,3579.5,3579.0,2.79405]
[1732909476171,3.55153,3579.5,3578.8,5.61625947]
[1732909477171,3.55153,3579.5,3578.8,2.82209947]
[1732909477409,3.55153,3579.5,3578.9,2.7941]
[1732909477724,3.0,3579.7,3579.2,2.79386]
[1732909477884,0.8052,3580.0,3579.3,0.02793792]
[1732909477885,3.59854,3580.0,3579.3,0.02793792]
[1732909478092,3.59854,3580.0,3579.4,2.7937]
[1732909479122,2.79337,3579.9,3579.4,2.7937]
[1732909480509,2.79351,3579.8,3579.2,2.79386]
[1732909480817,2.79361,3579.6,3579.1,0.7973]
[1732909481176,2.79351,3579.8,3579.1,3.59128]
[1732909481373,2.79354,3579.7,3579.1,3.59128]
[1732909481701,0.04397948,3579.6,3579.1,3.59128]
[1732909482298,0.04397948,3579.6,3579.3,2.79382]
[1732909482493,2.79342,3579.9,3579.4,2.79373]
[1732909482734,0.04390769,3579.5,3579.4,2.79373]
[1732909482904,0.8052,3580.0,3579.5,2.79364]
[1732909483230,2.79322,3580.1,3579.5,2.82157505]
[1732909483410,0.7765,3580.2,3579.6,2.7936]
[1732909483617,2.79321,3580.1,3579.7,0.7949]
[1732909484137,2.79321,3580.1,3579.6,2.7936]
[1732909484314,2.7939,3579.3,3578.7,2.79424]
[1732909484515,2.79393,3579.2,3578.6,2.79437]
[1732909485199,0.7765,3579.4,3578.6,2.79437]
[1732909485396,0.04381182,3579.1,3578.6,2.79437]
[1732909485600,0.7765,3579.4,3578.6,2.79437]
[1732909485875,0.04330671,3579.0,3578.7,2.79428]
[1732909486002,2.79389,3579.3,3578.7,2.79428]
[1732909486202,2.83736639,3579.3,3578.7,2.79428]
[1732909487309,0.04347639,3579.3,3578.9,2.79414]
[1732909488106,0.04347639,3579.3,3578.7,5.58852]
[1732909488301,0.04347639,3579.3,3578.8,2.79422]
[1732909489549,0.04347639,3579.3,3578.9,2.79413]
[1732909491266,2.83732639,3579.3,3578.7,2.79424]
[1732909491415,2.83732639,3579.3,3578.8,2.79423]
[1732909493864,0.04347639,3579.3,3578.8,2.79423]
[1732909494661,0.04347639,3579.3,3578.6,2.79438]
[1732909494870,2.79392,3579.2,3578.6,2.79438]
[1732909495232,0.04307173,3579.1,3578.6,2.79438]
[1732909495871,0.04307173,3579.1,3578.7,2.79431]
[1732909496067,0.04307173,3579.1,3578.8,2.79421]
[1732909496226,3.5703,3579.4,3578.8,2.79421]
[1732909496427,2.79384,3579.3,3578.8,2.79421]
[1732909496627,2.83688212,3579.3,3578.8,2.79421]
[1732909496872,2.83688212,3579.3,3578.6,5.5887]
[1732909497263,2.83688212,3579.3,3578.7,2.79429]
[1732909497664,2.83688212,3579.3,3578.6,2.79432]
[1732909497864,2.83688212,3579.3,3578.8,2.79419]
[1732909500071,2.83688212,3579.3,3578.8,2.79422]
[1732909500072,2.83689212,3579.3,3578.8,2.79422]
[1732909503466,2.83689212,3579.3,3578.9,0.43566711]
[1732909504161,0.04304212,3579.3,3578.9,0.43566711]
[1732909504365,0.04304212,3579.3,3579.0,2.79402]
[1732909504567,0.04304212,3579.3,3578.9,2.79414]
[1732909505105,0.04304212,3579.3,3579.2,2.79392]
[1732909505386,0.8221,3579.8,3579.2,2.79392]
[1732909505554,0.04234126,3579.3,3579.2,2.79392]
[1732909505763,3.61556,3579.8,3579.2,2.79392]
[1732909505949,0.04237317,3579.3,3579.2,2.79392]
[1732909506150,4.23690436,3580.3,3578.8,2.7942]
[1732909506151,2.79365,3579.6,3578.8,2.7942]
[1732909506350,0.04240508,3579.3,3578.6,0.7945]
[1732909506552,2.79383,3579.4,3578.6,3.58885]
[1732909506791,0.04237271,3579.2,3578.8,2.79418]
[1732909506991,2.79383,3579.4,3578.8,2.79418]
[1732909506992,2.83630375,3579.3,3578.8,2.79418]
[1732909507157,0.04233167,3579.1,3578.8,2.79418]
[1732909507353,2.79389,3579.3,3578.8,2.79418]
[1732909507702,3.60425,3579.5,3578.8,2.79418]
[1732909507983,0.04240118,3579.2,3578.8,2.79418]
[1732909508289,0.04238229,3579.1,3578.8,2.79418]
[1732909508494,2.79378,3579.4,3578.9,2.79414]
[1732909508681,0.04234125,3579.0,3578.9,2.79414]
[1732909508883,2.79378,3579.4,3578.9,2.79414]
[1732909509180,0.04245569,3579.3,3578.9,2.79414]
[1732909509869,0.04245569,3579.3,3579.0,1.21936588]
[1732909510068,0.04245569,3579.3,3578.9,2.79414]
[1732909510482,0.04245569,3579.3,3579.2,2.79392]
[1732909510665,0.7936,3579.8,3579.2,2.82185583]
[1732909510891,3.7936,3580.4,3579.7,2.79347]
[1732909511081,0.7936,3580.8,3580.2,2.79313]
[1732909511287,0.04328446,3580.3,3580.2,2.79313]
[1732909511495,0.7936,3580.8,3580.5,2.7929]
[1732909511656,3.58404,3581.1,3580.3,2.79299]
[1732909511988,3.58404,3581.1,3580.4,2.82088665]
[1732909511989,0.7916,3581.1,3580.4,2.82088665]
[1732909512197,3.58374,3581.5,3580.8,2.79262]
[1732909513595,3.58374,3581.5,3580.6,2.79282]
[1732909513596,2.7922,3581.4,3580.6,2.79282]
[1732909513795,0.7916,3581.5,3581.0,2.7925]
[1732909514011,2.79205,3581.6,3581.0,2.7925]
[1732909514166,3.566,3581.8,3580.8,5.35020496]
[1732909514363,3.566,3581.8,3581.1,2.79238]
[1732909514764,2.83319269,3581.7,3581.1,2.79238]
[1732909514978,0.04122269,3581.7,3581.2,2.79233]
[1732909515489,0.04122269,3581.7,3581.1,4.4223325]
[1732909515490,0.04122269,3581.7,3581.4,2.79219]
[1732909515687,3.0,3582.0,3581.4,2.79219]
[1732909515994,0.04135905,3581.9,3581.4,2.79219]
[1732909516563,0.04135905,3581.9,3581.2,2.79235]
[1732909517284,0.04135905,3581.9,3581.3,2.79222]
[1732909517471,0.04135905,3581.9,3581.2,0.72148025]
[1732909517678,0.7528,3582.1,3581.6,2.79203]
[1732909517989,0.04101825,3582.0,3581.6,2.79203]
[1732909518297,0.04101825,3582.0,3581.4,2.7922]
[1732909518810,2.83275825,3582.0,3581.2,2.79233]
[1732909519114,2.79183,3581.9,3581.3,2.79226]
[1732909519399,0.04133307,3581.9,3581.1,3.60812]
[1732909519597,0.04133307,3581.9,3581.3,2.79223]
[1732909519809,2.79174,3582.0,3581.3,2.79223]
[1732909520013,0.04131809,3581.8,3581.4,2.79217]
[1732909520313,0.04127712,3581.7,3581.4,2.79217]
[1732909520501,0.7528,3582.1,3581.4,2.79217]
[1732909520922,0.0414,3582.0,3581.5,2.79205]
[1732909521118,0.0414,3582.0,3581.1,1.4322675]
[1732909521119,0.0414,3582.0,3581.6,2.79203]
[1732909521273,0.0414,3582.0,3581.8,0.8091]
[1732909521480,3.56257,3582.6,3581.8,0.8091]
[1732909521781,2.79148,3582.4,3581.8,3.60097]
[1732909521978,2.83159465,3582.5,3581.9,2.79181]
[1732909522320,0.04004554,3582.4,3581.9,2.79181]
[1732909522619,0.04004554,3582.4,3581.8,0.8091]
[1732909523110,2.83148554,3582.4,3581.5,0.754]
[1732909523317,2.79161,3582.2,3581.5,3.54612]
[1732909523912,0.03992267,3582.1,3581.6,2.79203]
[1732909524117,2.79144,3582.4,3581.6,3.425853]
[1732909524284,0.03988171,3582.0,3581.9,2.79179]
[1732909524623,0.7713,3582.6,3582.0,2.7917]
[1732909524914,0.7713,3582.6,3581.9,2.79179]
[1732909524915,0.04004269,3582.5,3582.1,2.79164]
[1732909525276,0.04004269,3582.5,3581.9,2.79179]
[1732909525478,0.04004269,3582.5,3582.0,2.79173]
[1732909527323,0.04004269,3582.5,3582.0,2.79173]
[1732909528415,0.04004269,3582.5,3582.1,3.6202531]
[1732909528794,2.7912,3582.7,3582.1,3.6202531]
[1732909529000,0.04048459,3582.4,3582.1,3.59234]
[1732909529213,0.7708,3582.9,3582.1,3.59231]
[1732909529415,3.62068,3583.1,3582.3,2.79144]
[1732909529628,3.62068,3583.1,3582.5,2.79131]
[1732909530393,0.04090146,3583.0,3582.5,2.79131]
[1732909531635,2.83185146,3583.0,3582.3,2.79143]
[1732909532034,2.79104,3582.9,3582.3,2.79145]
[1732909532235,2.79133,3582.6,3581.9,3.34273156]
[1732909532434,0.8194,3582.6,3582.0,2.79173]
[1732909532637,0.04069676,3582.5,3582.2,2.79153]
[1732909532937,3.54946,3583.0,3582.4,2.79142]
[1732909533431,0.7585,3583.0,3582.5,2.79129]
[1732909533602,0.7585,3583.0,3582.4,0.8229]
[1732909533603,3.54946,3583.0,3582.4,0.8229]
[1732909534000,0.04090006,3582.9,3582.4,0.8229]
[1732909534411,0.04090006,3582.9,3582.4,3.6143]
[1732909535430,0.04090006,3582.9,3582.7,2.79115]
[1732909535849,2.7908,3583.2,3582.7,2.79115]
[1732909536005,0.04056021,3582.8,3582.7,2.79115]
[1732909536364,2.7908,3583.2,3582.7,2.79115]
[1732909536655,0.04056021,3582.8,3582.5,2.79134]
[1732909536811,2.7908,3583.2,3582.5,2.79134]
[1732909537012,0.04051926,3582.7,3582.5,2.79134]
[1732909537236,2.79096,3583.0,3582.5,2.79134]
[1732909537722,0.04060115,3582.9,3582.5,2.79134]
[1732909538134,2.7908,3583.2,3582.6,2.79126]
[1732909538338,0.04056021,3582.8,3582.6,2.79126]